[Event "15th Golden Prague Rapid Open"]
[Site "Prague"]
[Date "2019.06.30"]
[Round "4.9"]
[White "Kolbusovsky, Petr"]
[Black "Nedoma, Marek"]
[Result "0-1"]
[ECO "C55"]
[WhiteElo "1675"]
[BlackElo "1984"]
[Annotator "NA"]
[PlyCount "100"]
[EventDate "2019.06.30"]
[EventType "swiss"]
[EventCountry "CZE"]
[SourceTitle "playchess.com"]
[Source "ChessBase"]
[SourceQuality "1"]
[TimeControl "720+3"]

1. e4 {[%emt 0:00:00]} e5 {[%emt 0:00:00]} 2. Nf3 {[%emt 0:00:00]} Nc6 {[%emt 0:00:01]} 3. Bc4 {[%emt 0:00:01]} h6 {[%emt 0:00:37]} 4. c3 {[%emt 0:00:27]} Nf6 {[%emt 0:00:19]} 5. d3 {[%emt 0:01:11]} d6 {[%emt 0:00:10]} 6. O-O {[%emt 0:00:03]} Bg4 {[%emt 0:00:14]} 7. h3 {[%emt 0:00:02]} Bxf3 {[%emt 0:00:03]} 8. Qxf3 {[%emt 0:00:03]} Be7 {[%emt 0:00:14]} 9. Be3 {[%emt 0:00:26]} O-O {[%emt 0:00:18]} 10. d4 {[%emt 0:00:25]} exd4 {[%emt 0:00:47]} 11. Bxd4 {[%emt 0:00:37]} Ne5 {[%emt 0:00:44]} 12. Bxe5 {[%emt 0:00:16]} dxe5 {[%emt 0:00:01]} 13. Rd1 {[%emt 0:00:15]} Qe8 {[%emt 0:00:26]} 14. Nd2 {[%emt 0:00:36]} Rd8 {[%emt 0:00:29]} 15. Nb3 {[%emt 0:00:03]} Qc6 {[%emt 0:00:16]} 16. Bd3 {[%emt 0:01:12]} Bc5 {[%emt 0:00:38]} 17. Bc2 {[%emt 0:00:22]} Qb6 {[%emt 0:00:32]} 18. Rxd8 {[%emt 0:00:42]} Rxd8 {[%emt 0:00:01]} 19. Rd1 {[%emt 0:00:02]} Rxd1+ {[%emt 0:00:14]} 20. Bxd1 {[%emt 0:00:15]} a5 {[%emt 0:00:06]} 21. Nxc5 {[%emt 0:00:47]} Qxc5 {[%emt 0:00:01]} 22. Qd3 {[%emt 0:00:08]} Qd6 {[%emt 0:00:41]} 23. Qxd6 {[%emt 0:00:20]} cxd6 {[%emt 0:00:01]} 24. f3 {[%emt 0:00:04]} d5 {[%emt 0:00:08]} 25. Bc2 {[%emt 0:00:09]} dxe4 {[%emt 0:00:06]} 26. Bxe4 {[%emt 0:00:05]} b6 {[%emt 0:00:01]} 27. Bc6 {[%emt 0:00:09]} Kf8 {[%emt 0:00:04]} 28. Kf2 {[%emt 0:00:01]} Ke7 {[%emt 0:00:01]} 29. b4 {[%emt 0:00:08]} Kd6 {[%emt 0:00:12]} 30. b5 {[%emt 0:00:01]} Kc5 {[%emt 0:00:06]} 31. Ke3 {[%emt 0:00:10]} Kc4 {[%emt 0:00:22]} 32. Kd2 {[%emt 0:00:03]} Ng8 {[%emt 0:00:44]} 33. g4 {[%emt 0:00:38]} Ne7 {[%emt 0:00:01]} 34. h4 {[%emt 0:00:15]} Nc8 {[%emt 0:00:09]} 35. h5 {[%emt 0:00:04]} Nd6 {[%emt 0:00:02]} 36. a4 {[%emt 0:00:15]} Kb3 {[%emt 0:00:26]} 37. Bd5+ {[%emt 0:00:35]} Kxa4 {[%emt 0:00:28]} 38. c4 {[%emt 0:00:02]} Kb4 {[%emt 0:00:04]} 39. Kd3 {[%emt 0:00:33]} a4 {[%emt 0:00:03]} 40. Kc2 {[%emt 0:00:05]} a3 {[%emt 0:00:07]} 41. Kb1 {[%emt 0:00:02]} f6 {[%emt 0:00:52]} 42. Ka2 {[%emt 0:00:13]} Nxc4 {[%emt 0:00:03]} 43. Bxc4 {[%emt 0:00:13]} Kxc4 {[%emt 0:00:02]} 44. Kxa3 {[%emt 0:00:01]} Kxb5 {[%emt 0:00:01]} 45. Kb3 {[%emt 0:00:02]} Kc5 {[%emt 0:00:01]} 46. Kc3 {[%emt 0:00:02]} b5 {[%emt 0:00:03]} 47. Kb3 {[%emt 0:00:12]} b4 {[%emt 0:00:07]} 48. Kc2 {[%emt 0:00:02]} Kd4 {[%emt 0:00:01]} 49. Kb3 {[%emt 0:00:01]} Ke3 {[%emt 0:00:01]} 50. Kxb4 {[%emt 0:00:01]} Kxf3 {[%emt 0:00:01]} 0-1

[Event "15th Golden Prague Rapid Open"]
[Site "Prague"]
[Date "2019.06.30"]
[Round "4.10"]
[White "Plesnivy, Martin"]
[Black "Svoboda, Daniel"]
[Result "1-0"]
[ECO "B26"]
[WhiteElo "1803"]
[BlackElo "1456"]
[Annotator "NA"]
[PlyCount "53"]
[EventDate "2019.06.30"]
[EventType "swiss"]
[EventCountry "CZE"]
[SourceTitle "playchess.com"]
[Source "ChessBase"]
[SourceQuality "1"]
[TimeControl "720+3"]

1. d4 {[%emt 0:00:04]} Nf6 {[%emt 0:12:03]} 2. Nf3 {[%emt 0:00:00]} e6 {[%emt 0:00:00]} 3. c4 {[%emt 0:00:00]} b6 {[%emt 0:00:00]} 4. Nc3 {[%emt 0:00:02]} Bb7 {[%emt 0:00:00]} 5. e3 {[%emt 0:00:00]} d5 {[%emt 0:00:00]} 6. Bd3 {[%emt 0:00:01]} Be7 {[%emt 0:00:00]} 7. O-O {[%emt 0:00:04]} O-O {[%emt 0:00:00]} 8. Re1 {[%emt 0:00:13]} Nbd7 {[%emt 0:00:00]} 9. e4 {[%emt 0:00:08]} dxe4 {[%emt 0:00:00]} 10. Nxe4 {[%emt 0:00:03]} c5 {[%emt 0:00:00]} 11. Qc2 {[%emt 0:00:13]} cxd4 {[%emt 0:00:00]} 12. Nxd4 {[%emt 0:00:11]} Ne5 {[%emt 0:00:00]} 13. Nxf6+ {[%emt 0:00:11]} Bxf6 {[%emt 0:00:00]} 14. Bxh7+ {[%emt 0:00:08]} Kh8 {[%emt 0:00:00]} 15. Rd1 {[%emt 0:00:21]} Qc7 {[%emt 0:00:00]} 16. Be4 {[%emt 0:00:38]} Bxe4 {[%emt 0:00:00]} 17. Qxe4 {[%emt 0:00:03]} Qxc4 {[%emt 0:00:00]} 18. Be3 {[%emt 0:00:38]} Ng6 {[%emt 0:00:00]} 19. b3 {[%emt 0:00:30]} Qd5 {[%emt 0:00:00]} 20. Qg4 {[%emt 0:00:20]} Qb7 {[%emt 0:00:00]} 21. Rac1 {[%emt 0:00:28]} Rac8 {[%emt 0:00:00]} 22. Nxe6 {[%emt 0:00:13]} fxe6 {[%emt 0:00:00]} 23. Qxg6 {[%emt 0:00:13]} Rxc1 {[%emt 0:00:00]} 24. Rxc1 {[%emt 0:00:09]} Rc8 {[%emt 0:00:00]} 25. Re1 {[%emt 0:00:20]} Qd7 {[%emt 0:00:00]} 26. h3 {[%emt 0:00:16]} Rc2 {[%emt 0:00:00]} 27. Qxc2 {[%emt 0:00:04]} 1-0

[Event "15th Golden Prague Rapid Open"]
[Site "Prague"]
[Date "2019.06.30"]
[Round "5.1"]
[White "Jirovsky, Pavel"]
[Black "Rydl, Jiri"]
[Result "1-0"]
[ECO "A46"]
[WhiteElo "2322"]
[BlackElo "2422"]
[Annotator "ChessBase"]
[PlyCount "55"]
[EventDate "2019.06.30"]
[EventType "swiss"]
[EventCountry "CZE"]
[SourceTitle "playchess.com"]
[Source "ChessBase"]
[SourceQuality "1"]
[TimeControl "720+3"]

1. d4 {[%emt 0:00:01]} Nf6 {[%emt 0:00:05]} 2. Nf3 {[%emt 0:00:03]} e6 {[%emt 0:00:01]} 3. g3 {[%emt 0:00:03]} b5 {[%emt 0:00:03]} 4. Bg2 {[%emt 0:00:02]} Bb7 {[%emt 0:00:02]} 5. O-O {[%emt 0:00:03]} c5 {[%emt 0:00:06]} 6. c3 {[%emt 0:00:02]} Na6 {[%emt 0:00:02]} 7. a4 {[%emt 0:00:01]} b4 {[%emt 0:00:02]} 8. c4 {[%emt 0:00:26]} cxd4 {[%emt 0:00:07]} 9. Nxd4 {[%emt 0:00:16]} Bxg2 {[%emt 0:00:05]} 10. Kxg2 {[%emt 0:00:01]} Nc5 {[%emt 0:00:39]} 11. Nb5 {[%emt 0:01:56]} Qb6 {[%emt 0:00:22]} 12. Bf4 {[%emt 0:00:02]} Rc8 {[%emt 0:00:51]} 13. f3 {[%emt 0:01:36]} d5 {[%emt 0:00:32]} 14. a5 {[%emt 0:00:29]} Qb7 {[%emt 0:00:02]} 15. b3 {[%emt 0:00:10]} a6 {[%emt 0:00:20]} 16. Nd6+ {[%emt 0:00:12]} Bxd6 {[%emt 0:00:02]} 17. Bxd6 {[%emt 0:00:01]} Qc6 {[%emt 0:00:27]} 18. Be5 {[%emt 0:00:49]} dxc4 {[%emt 0:00:10]} 19. Bxf6 {[%emt 0:00:06]} gxf6 {[%emt 0:00:04]} 20. bxc4 {[%emt 0:00:01]} Ke7 {[%emt 0:00:43]} 21. Nd2 {[%emt 0:00:02]} Rhd8 {[%emt 0:00:20]} 22. Qc2 {[%emt 0:00:04]} Rd4 {[%emt 0:00:05]} 23. Rfb1 {[%emt 0:02:33]} Rcd8 {[%emt 0:01:13]} 24. Nf1 {[%emt 0:00:06]} b3 {[%emt 0:00:53]} 25. Qc3 {[%emt 0:00:13]} Kf8 {[%emt 0:00:39]} 26. e3 {[%emt 0:00:21]} Rd3 {[%emt 0:01:06]} 27. Qxf6 {[%emt 0:00:06]} Rb8 {[%emt 0:00:17]} 28. Qh8+ {[%emt 0:03:39]} 1-0

[Event "15th Golden Prague Rapid Open"]
[Site "Prague"]
[Date "2019.06.30"]
[Round "5.2"]
[White "Kiss, Pal"]
[Black "Ralis, Petr"]
[Result "1/2-1/2"]
[ECO "A56"]
[WhiteElo "2278"]
[BlackElo "2207"]
[Annotator "NA"]
[PlyCount "48"]
[EventDate "2019.06.30"]
[EventType "swiss"]
[EventCountry "CZE"]
[SourceTitle "playchess.com"]
[Source "ChessBase"]
[SourceQuality "1"]
[TimeControl "720+3"]

1. d4 {[%emt 0:00:00]} Nf6 {[%emt 0:00:00]} 2. c4 {[%emt 0:00:02]} c5 {[%emt 0:00:03]} 3. d5 {[%emt 0:00:02]} e5 {[%emt 0:00:03]} 4. Nc3 {[%emt 0:00:03]} d6 {[%emt 0:00:01]} 5. e4 {[%emt 0:00:04]} Be7 {[%emt 0:00:04]} 6. h3 {[%emt 0:00:21]} O-O {[%emt 0:00:02]} 7. Nf3 {[%emt 0:00:04]} a6 {[%emt 0:00:19]} 8. a4 {[%emt 0:00:04]} Nbd7 {[%emt 0:00:06]} 9. Bd3 {[%emt 0:00:03]} Nh5 {[%emt 0:00:11]} 10. g3 {[%emt 0:01:18]} g6 {[%emt 0:00:07]} 11. Bh6 {[%emt 0:00:02]} Ng7 {[%emt 0:00:04]} 12. g4 {[%emt 0:00:13]} Nf6 {[%emt 0:00:18]} 13. Qd2 {[%emt 0:00:27]} Bd7 {[%emt 0:00:14]} 14. Ke2 {[%emt 0:01:26]} Kh8 {[%emt 0:00:15]} 15. Rag1 {[%emt 0:00:15]} Qa5 {[%emt 0:00:30]} 16. b3 {[%emt 0:01:07]} Qb4 {[%emt 0:01:00]} 17. Qc2 {[%emt 0:00:15]} Rfb8 {[%emt 0:00:30]} 18. Bd2 {[%emt 0:00:14]} Qb6 {[%emt 0:00:06]} 19. Ne1 {[%emt 0:00:29]} Qd8 {[%emt 0:00:15]} 20. f3 {[%emt 0:00:06]} Ng8 {[%emt 0:00:33]} 21. Qc1 {[%emt 0:01:03]} Qb6 {[%emt 0:00:55]} 22. Qc2 {[%emt 0:00:34]} Qd8 {[%emt 0:00:04]} 23. Qc1 {[%emt 0:00:48]} Qb6 {[%emt 0:00:53]} 24. Qc2 {[%emt 0:00:02]} Rf8 {[%emt 0:06:39]} 1/2-1/2

[Event "15th Golden Prague Rapid Open"]
[Site "Prague"]
[Date "2019.06.30"]
[Round "5.3"]
[White "Kalousek, Zdenek"]
[Black "Netusil, Miloslav"]
[Result "0-1"]
[ECO "A21"]
[WhiteElo "2005"]
[BlackElo "2189"]
[Annotator "NA"]
[PlyCount "80"]
[EventDate "2019.06.30"]
[EventType "swiss"]
[EventCountry "CZE"]
[SourceTitle "playchess.com"]
[Source "ChessBase"]
[SourceQuality "1"]
[TimeControl "720+3"]

1. c4 {[%emt 0:00:00]} e5 {[%emt 0:00:02]} 2. Nc3 {[%emt 0:00:00]} Bb4 {[%emt 0:00:02]} 3. Nd5 {[%emt 0:00:00]} Ba5 {[%emt 0:00:01]} 4. e3 {[%emt 0:01:04]} c6 {[%emt 0:00:08]} 5. Nc3 {[%emt 0:00:01]} Nf6 {[%emt 0:00:24]} 6. Nf3 {[%emt 0:00:13]} e4 {[%emt 0:00:18]} 7. Nd4 {[%emt 0:00:06]} O-O {[%emt 0:00:03]} 8. Be2 {[%emt 0:00:11]} d5 {[%emt 0:00:04]} 9. cxd5 {[%emt 0:00:06]} cxd5 {[%emt 0:00:02]} 10. O-O {[%emt 0:00:25]} Bb6 {[%emt 0:00:17]} 11. Nc2 {[%emt 0:00:57]} Nc6 {[%emt 0:00:07]} 12. d4 {[%emt 0:00:18]} Bc7 {[%emt 0:01:02]} 13. f4 {[%emt 0:00:50]} exf3 {[%emt 0:00:08]} 14. Bxf3 {[%emt 0:00:02]} a6 {[%emt 0:00:17]} 15. Bd2 {[%emt 0:00:20]} Qd6 {[%emt 0:00:30]} 16. g3 {[%emt 0:00:08]} Bh3 {[%emt 0:00:07]} 17. Bg2 {[%emt 0:00:21]} Bxg2 {[%emt 0:00:21]} 18. Kxg2 {[%emt 0:00:05]} Rae8 {[%emt 0:00:03]} 19. Qf3 {[%emt 0:00:17]} Ne4 {[%emt 0:00:19]} 20. Nxe4 {[%emt 0:00:07]} Rxe4 {[%emt 0:00:01]} 21. Rf2 {[%emt 0:00:18]} f5 {[%emt 0:00:12]} 22. Raf1 {[%emt 0:00:14]} g6 {[%emt 0:00:02]} 23. a3 {[%emt 0:00:04]} h5 {[%emt 0:00:14]} 24. Nb4 {[%emt 0:00:27]} h4 {[%emt 0:00:11]} 25. Nxc6 {[%emt 0:00:42]} Qxc6 {[%emt 0:00:03]} 26. Rc1 {[%emt 0:01:56]} Qd7 {[%emt 0:00:02]} 27. Kf1 {[%emt 0:00:35]} Kg7 {[%emt 0:00:17]} 28. Rg2 {[%emt 0:00:23]} Rh8 {[%emt 0:00:26]} 29. Kf2 {[%emt 0:00:33]} hxg3+ {[%emt 0:00:29]} 30. hxg3 {[%emt 0:00:06]} Rh3 {[%emt 0:00:05]} 31. Rcg1 {[%emt 0:00:34]} Qb5 {[%emt 0:00:46]} 32. Bc3 {[%emt 0:00:35]} Bd6 {[%emt 0:00:18]} 33. Qe2 {[%emt 0:00:22]} Qe8 {[%emt 0:00:01]} 34. Bd2 {[%emt 0:00:04]} Kf7 {[%emt 0:02:11]} 35. Kf1 {[%emt 0:00:22]} Ke7 {[%emt 0:00:50]} 36. Bb4 {[%emt 0:00:33]} Bxb4 37. axb4 {[%emt 0:00:01]} Kf7 {[%emt 0:01:03]} 38. Kf2 {[%emt 0:00:12]} f4 {[%emt 0:00:22]} 39. Qg4 {[%emt 0:00:06]} fxe3+ {[%emt 0:00:06]} 40. Kf3 {[%emt 0:00:01]} Rxg4 {[%emt 0:02:06]} 0-1

[Event "15th Golden Prague Rapid Open"]
[Site "Prague"]
[Date "2019.06.30"]
[Round "5.4"]
[White "Nedoma, Marek"]
[Black "Soural, Jan"]
[Result "1-0"]
[ECO "A45"]
[WhiteElo "1984"]
[BlackElo "2196"]
[Annotator "NA"]
[PlyCount "61"]
[EventDate "2019.06.30"]
[EventType "swiss"]
[EventCountry "CZE"]
[SourceTitle "playchess.com"]
[Source "ChessBase"]
[SourceQuality "1"]
[TimeControl "720+3"]

1. d4 {[%emt 0:12:03]} e6 {[%emt 0:12:03]} 2. Bf4 {[%emt 0:00:03]} Nf6 {[%emt 0:00:03]} 3. h3 {[%emt 0:00:03]} c5 {[%emt 0:00:03]} 4. e3 {[%emt 0:00:03]} Qb6 {[%emt 0:00:03]} 5. b3 {[%emt 0:00:03]} Nc6 {[%emt 0:00:03]} 6. Nf3 {[%emt 0:00:03]} Nd5 {[%emt 0:00:03]} 7. dxc5 {[%emt 0:00:03]} Bxc5 {[%emt 0:00:03]} 8. Bg3 {[%emt 0:00:03]} Qa5+ {[%emt 0:00:03]} 9. Nfd2 {[%emt 0:00:03]} Bxe3 {[%emt 0:00:03]} 10. fxe3 {[%emt 0:00:03]} Nxe3 11. Qc1 {[%emt 0:00:03]} Qg5 {[%emt 0:00:06]} 12. Bf2 {[%emt 0:00:03]} Nxg2+ {[%emt 0:00:03]} 13. Bxg2 {[%emt 0:00:03]} Qxg2 14. Rg1 {[%emt 0:00:03]} Qd5 {[%emt 0:00:06]} 15. Nc3 {[%emt 0:00:03]} Qe5+ {[%emt 0:00:03]} 16. Ne2 b6 {[%emt 0:00:03]} 17. Nc4 {[%emt 0:00:06]} Qc7 {[%emt 0:00:03]} 18. Rxg7 {[%emt 0:00:03]} d5 {[%emt 0:00:03]} 19. Ne3 {[%emt 0:00:03]} Qe5 {[%emt 0:00:03]} 20. Rg3 {[%emt 0:00:03]} Ba6 {[%emt 0:00:03]} 21. Rb1 {[%emt 0:00:03]} Bxe2 {[%emt 0:00:03]} 22. Kxe2 {[%emt 0:00:03]} d4 23. Qd2 {[%emt 0:00:03]} dxe3 {[%emt 0:00:06]} 24. Rxe3 {[%emt 0:00:03]} Qh5+ 25. Kf1 {[%emt 0:00:03]} Rd8 {[%emt 0:00:06]} 26. Qc3 {[%emt 0:00:03]} Rd1+ {[%emt 0:00:03]} 27. Rxd1 {[%emt 0:00:03]} Qxd1+ {[%emt 0:00:03]} 28. Re1 {[%emt 0:00:03]} Qd5 {[%emt 0:00:03]} 29. Qxh8+ {[%emt 0:00:03]} Kd7 30. Qxh7 {[%emt 0:00:03]} Ne5 {[%emt 0:00:06]} 31. Qe4 {[%emt 0:00:03]} 1-0

[Event "15th Golden Prague Rapid Open"]
[Site "Prague"]
[Date "2019.06.30"]
[Round "5.5"]
[White "Benes, Petr"]
[Black "Plesnivy, Martin"]
[Result "1-0"]
[ECO "E01"]
[WhiteElo "2103"]
[BlackElo "1803"]
[Annotator "NA"]
[PlyCount "67"]
[EventDate "2019.06.30"]
[EventType "swiss"]
[EventCountry "CZE"]
[SourceTitle "playchess.com"]
[Source "ChessBase"]
[SourceQuality "1"]
[TimeControl "720+3"]

1. g3 {[%emt 0:00:02]} d5 {[%emt 0:00:00]} 2. Bg2 {[%emt 0:00:02]} e6 {[%emt 0:00:00]} 3. Nf3 {[%emt 0:00:08]} c6 {[%emt 0:00:02]} 4. O-O {[%emt 0:00:13]} Bd6 {[%emt 0:00:04]} 5. d4 {[%emt 0:00:03]} Nf6 {[%emt 0:00:03]} 6. c4 {[%emt 0:00:08]} Nbd7 {[%emt 0:00:09]} 7. Nc3 {[%emt 0:00:22]} O-O {[%emt 0:00:08]} 8. Qd3 {[%emt 0:00:14]} Re8 {[%emt 0:00:24]} 9. Rd1 {[%emt 0:00:06]} a6 {[%emt 0:00:36]} 10. Bf4 {[%emt 0:01:34]} Bxf4 {[%emt 0:00:10]} 11. gxf4 {[%emt 0:00:01]} dxc4 {[%emt 0:00:21]} 12. Qxc4 {[%emt 0:00:04]} Nd5 {[%emt 0:00:02]} 13. e3 {[%emt 0:00:12]} Nxc3 {[%emt 0:00:16]} 14. bxc3 {[%emt 0:00:17]} Nb6 {[%emt 0:00:17]} 15. Qd3 {[%emt 0:00:11]} Qf6 {[%emt 0:00:33]} 16. Rab1 {[%emt 0:00:11]} Nd7 {[%emt 0:00:10]} 17. c4 {[%emt 0:00:17]} Qg6 {[%emt 0:00:12]} 18. Qe2 {[%emt 0:00:32]} b5 {[%emt 0:00:59]} 19. c5 {[%emt 0:00:14]} Bb7 {[%emt 0:00:35]} 20. Kh1 {[%emt 0:00:02]} Nf6 {[%emt 0:00:15]} 21. Ne5 {[%emt 0:00:07]} Qh6 {[%emt 0:00:26]} 22. Bxc6 {[%emt 0:00:33]} Bxc6+ {[%emt 0:00:04]} 23. Nxc6 {[%emt 0:00:01]} Nd5 {[%emt 0:00:08]} 24. Rbc1 {[%emt 0:00:48]} b4 {[%emt 0:00:19]} 25. Qf3 {[%emt 0:00:22]} a5 {[%emt 0:00:14]} 26. Rg1 {[%emt 0:00:18]} f6 {[%emt 0:00:19]} 27. f5 {[%emt 0:00:23]} Nc3 {[%emt 0:01:28]} 28. fxe6 {[%emt 0:00:06]} Nxa2 {[%emt 0:00:23]} 29. Ne7+ {[%emt 0:00:11]} Kh8 {[%emt 0:00:05]} 30. Nf5 {[%emt 0:00:02]} Qg5 {[%emt 0:00:19]} 31. Ra1 {[%emt 0:00:19]} Qxg1+ {[%emt 0:00:17]} 32. Rxg1 {[%emt 0:00:16]} b3 {[%emt 0:00:06]} 33. Qb7 {[%emt 0:00:08]} Rg8 {[%emt 0:00:08]} 34. Rxg7 {[%emt 0:00:07]} 1-0

[Event "15th Golden Prague Rapid Open"]
[Site "Prague"]
[Date "2019.06.30"]
[Round "5.6"]
[White "Holub, Adam"]
[Black "Burdik, Lubomir"]
[Result "0-1"]
[ECO "A17"]
[WhiteElo "1433"]
[BlackElo "2132"]
[Annotator "NA"]
[PlyCount "65"]
[EventDate "2019.06.30"]
[EventType "swiss"]
[EventCountry "CZE"]
[SourceTitle "playchess.com"]
[Source "ChessBase"]
[SourceQuality "1"]
[TimeControl "720+3"]

1. c4 {[%emt 0:00:00]} e6 {[%emt 0:00:00]} 2. g3 {[%emt 0:00:01]} d5 {[%emt 0:00:01]} 3. cxd5 {[%emt 0:00:02]} exd5 {[%emt 0:00:02]} 4. Bg2 {[%emt 0:00:01]} Nf6 {[%emt 0:00:08]} 5. Nc3 {[%emt 0:00:05]} c6 {[%emt 0:00:08]} 6. d4 {[%emt 0:00:03]} Bd6 {[%emt 0:00:02]} 7. Bg5 {[%emt 0:00:10]} h6 {[%emt 0:00:42]} 8. Bxf6 {[%emt 0:00:25]} Qxf6 {[%emt 0:00:02]} 9. e3 {[%emt 0:00:03]} O-O {[%emt 0:00:08]} 10. Nf3 {[%emt 0:00:08]} Nd7 {[%emt 0:00:07]} 11. O-O {[%emt 0:00:02]} Qe7 {[%emt 0:00:10]} 12. a3 {[%emt 0:00:05]} a5 {[%emt 0:00:07]} 13. Rc1 {[%emt 0:00:03]} Nf6 {[%emt 0:00:10]} 14. Re1 {[%emt 0:00:22]} Bg4 {[%emt 0:00:36]} 15. h3 {[%emt 0:00:17]} Bf5 {[%emt 0:00:03]} 16. Na4 {[%emt 0:00:50]} Qc7 {[%emt 0:01:43]} 17. Kh2 {[%emt 0:01:08]} Ne4 {[%emt 0:00:03]} 18. Kg1 {[%emt 0:00:24]} Rfe8 {[%emt 0:00:49]} 19. Nd2 {[%emt 0:00:11]} Nxf2 {[%emt 0:03:28]} 20. Kxf2 {[%emt 0:00:25]} Bxg3+ {[%emt 0:00:02]} 21. Kg1 {[%emt 0:00:03]} Bxe1 {[%emt 0:00:26]} 22. Qxe1 {[%emt 0:00:01]} Re6 {[%emt 0:00:03]} 23. Bxd5 {[%emt 0:00:52]} Rg6+ {[%emt 0:00:16]} 24. Kh1 {[%emt 0:00:09]} Bxh3 {[%emt 0:00:34]} 25. Be4 {[%emt 0:00:19]} Rg3 {[%emt 0:00:25]} 26. Nf1 {[%emt 0:00:47]} Bxf1 {[%emt 0:00:12]} 27. Qxf1 {[%emt 0:00:01]} Rxe3 {[%emt 0:00:06]} 28. Nc3 {[%emt 0:00:21]} Qg3 {[%emt 0:00:24]} 29. Bg2 {[%emt 0:00:44]} Rae8 {[%emt 0:00:02]} 30. Ne4 {[%emt 0:00:21]} Qh4+ {[%emt 0:00:11]} 31. Kg1 {[%emt 0:00:10]} R3xe4 {[%emt 0:00:03]} 32. Bxe4 {[%emt 0:00:02]} Rxe4 {[%emt 0:00:02]} 33. Qd1 {[%emt 0:05:04]} 0-1

[Event "15th Golden Prague Rapid Open"]
[Site "Prague"]
[Date "2019.06.30"]
[Round "5.7"]
[White "Rehak, Martin"]
[Black "Hozda, Max"]
[Result "1/2-1/2"]
[ECO "C00"]
[WhiteElo "2071"]
[BlackElo "1695"]
[Annotator "NA"]
[PlyCount "70"]
[EventDate "2019.06.30"]
[EventType "swiss"]
[EventCountry "CZE"]
[SourceTitle "playchess.com"]
[Source "ChessBase"]
[SourceQuality "1"]
[TimeControl "720+3"]

1. e4 {[%emt 0:12:03]} e6 {[%emt 0:12:03]} 2. b3 {[%emt 0:00:03]} d5 {[%emt 0:00:03]} 3. Bb2 Nf6 {[%emt 0:00:03]} 4. e5 {[%emt 0:00:06]} Nfd7 5. d4 {[%emt 0:00:03]} c5 {[%emt 0:00:06]} 6. c3 Nc6 {[%emt 0:00:03]} 7. f4 {[%emt 0:00:06]} Be7 {[%emt 0:00:03]} 8. Nd2 {[%emt 0:00:03]} cxd4 {[%emt 0:00:03]} 9. cxd4 Qb6 {[%emt 0:00:03]} 10. Ndf3 {[%emt 0:00:06]} Bb4+ {[%emt 0:00:03]} 11. Kf2 {[%emt 0:00:03]} O-O {[%emt 0:00:03]} 12. g3 {[%emt 0:00:03]} f6 {[%emt 0:00:03]} 13. Kg2 {[%emt 0:00:03]} fxe5 {[%emt 0:00:03]} 14. fxe5 {[%emt 0:00:03]} Qc7 {[%emt 0:00:03]} 15. a3 {[%emt 0:00:03]} Be7 {[%emt 0:00:03]} 16. b4 {[%emt 0:00:03]} a6 {[%emt 0:00:03]} 17. Bd3 {[%emt 0:00:03]} Rf7 {[%emt 0:00:03]} 18. h4 {[%emt 0:00:03]} Nb6 {[%emt 0:00:03]} 19. Nh3 {[%emt 0:00:03]} Nc4 {[%emt 0:00:03]} 20. Bxh7+ {[%emt 0:00:03]} Kf8 {[%emt 0:00:03]} 21. Bc3 {[%emt 0:00:03]} Ne3+ {[%emt 0:00:03]} 22. Kh2 {[%emt 0:00:03]} Nxd1 {[%emt 0:00:03]} 23. Raxd1 {[%emt 0:00:03]} Rxf3 {[%emt 0:00:03]} 24. Bg6 {[%emt 0:00:03]} Bd7 {[%emt 0:00:03]} 25. Rhf1 {[%emt 0:00:03]} Rxf1 {[%emt 0:00:03]} 26. Rxf1+ {[%emt 0:00:03]} Kg8 {[%emt 0:00:03]} 27. Bf7+ {[%emt 0:00:03]} Kh8 {[%emt 0:00:03]} 28. Nf4 {[%emt 0:00:03]} Nxd4 {[%emt 0:00:03]} 29. Bxd4 {[%emt 0:00:03]} Qc2+ {[%emt 0:00:03]} 30. Kh3 {[%emt 0:00:03]} Bb5 {[%emt 0:00:03]} 31. Ng6+ {[%emt 0:00:03]} Kh7 {[%emt 0:00:03]} 32. Rf2 {[%emt 0:00:03]} Be2 {[%emt 0:00:03]} 33. Nxe7 {[%emt 0:00:03]} Bg4+ {[%emt 0:00:03]} 34. Kg2 {[%emt 0:00:03]} Qe4+ {[%emt 0:00:03]} 35. Kh2 {[%emt 0:00:03]} Qxd4 {[%emt 0:00:03]} 1/2-1/2